fUST/lending_fUST_20250626
["ID","MTS","AMOUNT","RATE_DAILY","PERIOD"]
[367612364,1750872655298,-460.0,0.00017808,2]
[367612365,1750872655307,-460.0,0.00017808,2]
[367612366,1750872655316,-277.5,0.00017808,2]
[367612367,1750872655326,-151.0,0.00017808,2]
[367612368,1750872655335,-460.0,0.00017808,2]
[367612369,1750872655345,-460.0,0.00017808,2]
[367612370,1750872655354,-565.42,0.00017808,2]
[367612371,1750872655363,-151.0,0.00017808,2]
[367612372,1750872655372,-392.76,0.00017808,2]
[367612373,1750872655381,-460.0,0.00017808,2]
[367612374,1750872655391,-768.57,0.00017808,2]
[367612375,1750872655401,-177.11346123,0.00017808,2]
[367612376,1750872655410,-151.0,0.00017808,2]
[367612377,1750872655419,-759.26,0.00017808,2]
[367612378,1750872655429,-460.0,0.00017808,2]
[367612379,1750872655438,-151.0,0.00017808,2]
[367612380,1750872655447,-151.0,0.00017808,2]
[367612381,1750872655457,-151.0,0.00017808,2]
[367612382,1750872655465,-1200.78,0.00017808,2]
[367612383,1750872655475,-460.0,0.00017808,2]
[367612384,1750872655484,-151.0,0.00017808,2]
[367612385,1750872655493,-460.0,0.00017808,2]
[367612386,1750872655502,-460.0,0.00017808,2]
[367612387,1750872655512,-460.0,0.00017808,2]
[367612388,1750872655521,-460.0,0.00017808,2]
[367612389,1750872655530,-460.0,0.00017808,2]
[367612390,1750872655539,-488.41,0.00017808,2]
[367612391,1750872655548,-460.0,0.00017808,2]
[367612392,1750872655557,-460.0,0.00017808,2]
[367612393,1750872655566,-151.0,0.00017808,2]
[367612394,1750872655575,-460.0,0.00017808,2]
[367612395,1750872655584,-460.0,0.00017808,2]
[367612396,1750872655593,-570.73,0.00017808,2]
[367612397,1750872655602,-460.0,0.00017808,2]
[367612398,1750872655612,-460.0,0.00017808,2]
[367612399,1750872655621,-254.054618,0.00017808,2]
[367612400,1750872655630,-254.054618,0.00017808,2]
[367612401,1750872655639,-151.0,0.00017808,2]
[367612402,1750872655648,-216.185644,0.00017808,2]
[367612403,1750872655657,-482.54,0.00017808,2]
[367612404,1750872655666,-179.842334,0.00017808,2]
[367612405,1750872655675,-179.842334,0.00017808,2]
[367612406,1750872655685,-460.0,0.00017808,2]
[367612407,1750872655694,-460.0,0.00017808,2]
[367612408,1750872655703,-460.0,0.00017808,2]
[367612409,1750872655712,-1855.62,0.00017808,2]
[367612410,1750872655722,-1253.47,0.00017808,2]
[367612411,1750872655731,-3008.39,0.00017808,2]
[367612412,1750872655740,-517.07,0.00017808,2]
[367612413,1750872655750,-460.0,0.00017808,2]
[367612414,1750872655759,-460.0,0.00017808,2]
[367612415,1750872655768,-460.0,0.00017808,2]
[367612416,1750872655778,-2593.65,0.00017808,2]
[367612417,1750872655787,-1047.33,0.00017808,2]
[367612418,1750872655796,-477.85,0.00017808,2]
[367612419,1750872655805,-572.85,0.00017808,2]
[367612420,1750872655814,-461.15,0.00017808,2]
[367612421,1750872655823,-214.95,0.00017808,2]
[367612422,1750872655832,-3755.75,0.00017808,2]
[367612423,1750872655842,-460.0,0.00017808,2]
[367612424,1750872655851,-460.0,0.00017808,2]
[367612425,1750872655860,-4122.46,0.00017808,2]
[367612426,1750872655869,-645.89,0.00017808,2]
[367612427,1750872655884,-567.97,0.00017808,2]
[367612428,1750872655894,-487.51,0.00017808,2]
[367612429,1750872655903,-460.0,0.00017808,2]
[367612430,1750872655913,-460.0,0.00017808,2]
[367612431,1750872655923,-467.6,0.00017808,2]
[367612432,1750872655932,-1700.67,0.00017808,2]
[367612433,1750872655942,-2709.82,0.00017808,2]
[367612434,1750872655952,-460.0,0.00017808,2]
[367612435,1750872655962,-3209.32,0.00017808,2]
[367612436,1750872655971,-460.0,0.00017808,2]
[367612437,1750872655980,-1072.75,0.00017808,2]
[367612438,1750872655989,-460.0,0.00017808,2]
[367612439,1750872655999,-460.0,0.00017808,2]
[367612440,1750872656008,-3480.43,0.00017808,2]
[367612441,1750872656018,-1565.24,0.00017808,2]
[367612442,1750872656027,-683.63,0.00017808,2]
[367612443,1750872656036,-562.78624203,0.00017808,2]
[367612444,1750872656046,-460.0,0.00017808,2]
[367612445,1750872656055,-608.68,0.00017808,2]
[367612446,1750872656065,-1409.86,0.00017808,2]
[367612447,1750872656074,-823.56,0.00017808,2]
[367612448,1750872656084,-1035.91,0.00017808,2]
[367612449,1750872656093,-539.32,0.00017808,2]
[367612450,1750872656103,-460.0,0.00017808,2]
[367612451,1750872656112,-472.97,0.00017808,2]
[367612452,1750872656121,-1678.89,0.00017808,2]
[367612453,1750872656130,-460.0,0.00017808,2]
[367612454,1750872656139,-497.29,0.00017808,2]
[367612455,1750872656148,-503.36,0.00017808,2]
[367612456,1750872656158,-954.13,0.00017808,2]
[367612457,1750872656167,-2662.82,0.00017808,2]
[367612458,1750872656175,-460.0,0.00017808,2]
[367612459,1750872656185,-460.0,0.00017808,2]
[367612460,1750872656194,-799.82,0.00017808,2]
[367612461,1750872656203,-675.08,0.00017808,2]
[367612462,1750872656213,-460.0,0.00017808,2]
[367612463,1750872656222,-769.54,0.00017808,2]
[367612464,1750872656231,-1230.8,0.00017808,2]
[367612465,1750872656240,-809.04,0.00017808,2]
[367612466,1750872656250,-460.0,0.00017808,2]
[367612467,1750872656259,-212.95537941,0.00017808,2]
[367612468,1750872656268,-1710.27,0.00017808,2]
[367612469,1750872656277,-631.38,0.00017808,2]
[367612470,1750872656287,-1868.64,0.00017808,2]
[367612471,1750872656297,-460.0,0.00017808,2]
[367612472,1750872656306,-1081.41,0.00017808,2]
[367612473,1750872656315,-570.06,0.00017808,2]
[367612474,1750872656324,-460.0,0.00017808,2]
[367612475,1750872656333,-460.0,0.00017808,2]
[367612476,1750872656342,-460.0,0.00017808,2]
[367612477,1750872656351,-460.0,0.00017808,2]
[367612478,1750872656360,-460.0,0.00017808,2]
[367612479,1750872656370,-1055.6,0.00017808,2]
[367612480,1750872656380,-707.38,0.00017808,2]
[367612481,1750872656389,-460.0,0.00017808,2]
[367612482,1750872656398,-800.0,0.00017874,2]
[367612483,1750872656408,-800.0,0.00017933,2]
[367612484,1750872656417,-1200.0,0.00017945,2]
[367612485,1750872656427,-420.0,0.00017952,2]
[367612486,1750872656436,-300.0,0.00017952,2]
[367612487,1750872656445,-420.0,0.00017952,2]
[367612488,1750872656455,-500.0,0.00017973,2]
[367612489,1750872656464,-500.0,0.00017973,2]
[367612490,1750872656473,-472.97617341,0.00017973,2]
[367612491,1750872656483,-800.0,0.00017976,2]
[367612492,1750872656492,-167.45607275,0.00017982,2]
[367612493,1750872656503,-151.0,0.00017988,2]
[367612494,1750872656512,-151.0,0.00017988,2]
[367612495,1750872656521,-1811.464137,0.00017988,2]
[367612496,1750872656531,-151.0,0.0001799,2]
[367612497,1750872656540,-5326.03610265,0.00018,2]
[367612498,1750872656550,-4085.61089755,0.00018003,2]
[367612499,1750872656559,-800.0,0.00018043,2]
[367612500,1750872656569,-151.0,0.00018082,2]
[367612501,1750872656578,-151.0,0.00018082,2]
[367612502,1750872656588,-460.0,0.00018082,2]
[367612503,1750872656597,-151.0,0.00018082,2]
[367612504,1750872656606,-151.0,0.00018082,2]
[367612505,1750872656615,-460.0,0.00018082,2]
[367612506,1750872656625,-460.0,0.00018082,2]
[367612507,1750872656636,-460.0,0.00018082,2]
[367612508,1750872656645,-768.57,0.00018082,2]
[367612509,1750872656655,-759.26,0.00018082,2]
[367612510,1750872656664,-460.0,0.00018082,2]
[367612511,1750872656674,-1200.78,0.00018082,2]
[367612512,1750872656683,-460.0,0.00018082,2]
[367612513,1750872656692,-194.46822082,0.00018082,2]
[367612514,1750872656702,-460.0,0.00018082,2]
[367612515,1750872656711,-460.0,0.00018082,2]
[367612516,1750872656720,-460.0,0.00018082,2]
[367612517,1750872656729,-401.95,0.00018082,2]
[367612518,1750872656738,-488.41,0.00018082,2]
[367612519,1750872656748,-573.06,0.00018082,2]
[367612520,1750872656758,-460.0,0.00018082,2]
[367612521,1750872656767,-151.0,0.00018082,2]
[367612522,1750872656776,-460.0,0.00018082,2]
[367612523,1750872656786,-460.0,0.00018082,2]
[367612524,1750872656795,-570.73,0.00018082,2]
[367612525,1750872656804,-460.0,0.00018082,2]
[367612526,1750872656813,-460.0,0.00018082,2]
[367612527,1750872656822,-254.054618,0.00018082,2]
[367612528,1750872656831,-254.054618,0.00018082,2]
[367612529,1750872656840,-151.0,0.00018082,2]
[367612530,1750872656849,-482.54,0.00018082,2]
[367612531,1750872656858,-179.842334,0.00018082,2]
[367612532,1750872656867,-179.842334,0.00018082,2]
[367612533,1750872656880,-460.0,0.00018082,2]
[367612534,1750872656890,-460.0,0.00018082,2]
[367612535,1750872656899,-460.0,0.00018082,2]
[367612536,1750872656908,-1855.62,0.00018082,2]
[367612537,1750872656916,-1253.47,0.00018082,2]
[367612538,1750872656926,-3008.39,0.00018082,2]
[367612539,1750872656934,-517.07,0.00018082,2]
[367612540,1750872656944,-460.0,0.00018082,2]
[367612541,1750872656953,-460.0,0.00018082,2]
[367612542,1750872656962,-460.0,0.00018082,2]
[367612543,1750872656971,-2593.65,0.00018082,2]
[367612544,1750872656980,-1047.33,0.00018082,2]
[367612545,1750872656989,-477.85,0.00018082,2]
[367612546,1750872656999,-572.85,0.00018082,2]
[367612547,1750872657008,-461.15,0.00018082,2]
[367612548,1750872657017,-3755.75,0.00018082,2]
[367612549,1750872657027,-460.0,0.00018082,2]
[367612550,1750872657036,-460.0,0.00018082,2]
[367612551,1750872657045,-4122.46,0.00018082,2]
[367612552,1750872657054,-645.89,0.00018082,2]
[367612553,1750872657063,-567.97,0.00018082,2]
[367612554,1750872657072,-460.0,0.00018082,2]
[367612555,1750872657081,-460.0,0.00018082,2]
[367612556,1750872657091,-467.6,0.00018082,2]
[367612557,1750872657110,-1700.67,0.00018082,2]
[367612558,1750872657121,-2709.82,0.00018082,2]
[367612559,1750872657131,-210.92688138,0.00018082,2]
[367612560,1750872657155,-249.07311862,0.00018082,2]
[367612561,1750872657165,-460.0,0.00018082,2]
[367612562,1750872657175,-1066.46474496,0.00018082,2]
[367612563,1750872657187,-2142.85525504,0.00018082,2]
[367612564,1750872657198,-1072.75,0.00018082,2]
[367612565,1750872657207,-460.0,0.00018082,2]
[367612566,1750872657218,-460.0,0.00018082,2]
[367612567,1750872657229,-3480.43,0.00018082,2]
[367612568,1750872657239,-1565.24,0.00018082,2]
[367612569,1750872657249,-683.63,0.00018082,2]
[367612570,1750872657259,-460.0,0.00018082,2]
[367612571,1750872657269,-1409.86,0.00018082,2]
[367612572,1750872657279,-608.68,0.00018082,2]
[367612573,1750872657288,-823.56,0.00018082,2]
[367612574,1750872657298,-287.115607,0.00018082,2]
[367612575,1750872657308,-1035.91,0.00018082,2]
[367612576,1750872657318,-539.32,0.00018082,2]
[367612577,1750872657328,-216.164729,0.00018082,2]
[367612578,1750872657337,-460.0,0.00018082,2]
[367612579,1750872657347,-472.97,0.00018082,2]
[367612580,1750872657356,-1678.89,0.00018082,2]
[367612581,1750872657366,-460.0,0.00018082,2]
[367612582,1750872657376,-497.29,0.00018082,2]
[367612583,1750872657386,-503.36,0.00018082,2]
[367612584,1750872657396,-954.13,0.00018082,2]
[367612585,1750872657406,-517.84440897,0.00018082,2]
[367612586,1750872657593,-460.0,0.00016438,2]
[367612587,1750872657603,-518.25533123,0.00016438,2]
[367612588,1750872657612,-63.78671618,0.00016712,2]
[367612589,1750872657624,-396.21328382,0.00016712,2]
[367612590,1750872657634,-460.0,0.00016986,2]
[367612591,1750872657644,-460.0,0.0001726,2]
[367612592,1750872657654,-460.0,0.00017534,2]
[367612593,1750872657663,-460.0,0.00017808,2]
[367612594,1750872657673,-354.798298,0.00017808,2]
[367612595,1750872657683,-318.3632662,0.00017808,2]
[367612596,1750872657694,-1149.7195556,0.00017808,2]
[367612597,1750872657704,-2144.97559103,0.00018082,2]
[367612598,1750872657713,-460.0,0.00018082,2]
[367612599,1750872657723,-460.0,0.00018082,2]
[367612600,1750872657733,-799.82,0.00018082,2]
[367612601,1750872657742,-675.08,0.00018082,2]
[367612602,1750872657753,-460.0,0.00018082,2]
[367612603,1750872657901,-769.54,0.00018082,2]
[367612604,1750872657936,-1230.8,0.00018082,2]
[367612605,1750872657945,-809.04,0.00018082,2]
[367612606,1750872657955,-460.0,0.00018082,2]
[367612607,1750872657965,-1710.27,0.00018082,2]
[367612608,1750872657976,-631.38,0.00018082,2]
[367612609,1750872657985,-1868.64,0.00018082,2]
[367612610,1750872657994,-460.0,0.00018082,2]
[367612611,1750872658006,-1081.41,0.00018082,2]
[367612612,1750872658016,-570.06,0.00018082,2]
[367612613,1750872658025,-506.46,0.00018082,2]
[367612614,1750872658034,-460.0,0.00018082,2]
[367612615,1750872658044,-379.19118822,0.00018082,2]
[367612616,1750872658054,-460.0,0.00018082,2]
[367612617,1750872658063,-460.0,0.00018082,2]
[367612618,1750872658073,-1055.6,0.00018082,2]
[367612619,1750872658082,-707.38,0.00018082,2]
[367612620,1750872658091,-64.62954395,0.00018082,2]
[367612621,1750872658103,-288.78045605,0.00018082,2]
[367612622,1750872658113,-460.0,0.00018082,2]
[367612623,1750872658122,-151.0,0.00018098,2]
[367612624,1750872658131,-53.25912067,0.00018098,2]
[367612625,1750872774524,6931.73227201,0.00015644,2]
[367612626,1750872774546,9131.88838329,0.00015644,2]
[367612628,1750872780431,321.090501,0.00013699,2]
[367612629,1750872828518,234.28446,0.00015769,2]
[367612630,1750872828934,234.28446,0.00015769,120]
[367612631,1750872893862,10000.0,0.00015575,2]
[367612632,1750872895135,192.60813713,0.00015945,2]
[367612635,1750872950108,120.12851858,0.00015575,2]
[367612636,1750872950363,55.16442542,0.00015575,2]
[367612637,1750872977967,5000.0,0.000161,2]
[367612638,1750872993153,4427.0,0.000161,2]
[367612640,1750873111855,181.2169568,0.00015438,2]
[367612645,1750873238352,265.9137825,0.00015438,2]
[367612652,1750873608563,151.20646252,0.000154,2]
[367612657,1750873759526,364.537784,0.00013699,2]
[367612658,1750873760195,9554.96058876,0.00015435,2]
[367612659,1750873760218,15345.03941124,0.00015435,2]
[367612743,1750873834572,1716.7670657,0.00015558,2]
[367612744,1750873837259,-153.32499634,0.00016305,2]
[367612745,1750873837271,-2050.68028169,0.00016338,2]
[367612746,1750873837281,-153.34192971,0.00016405,2]
[367612747,1750873837290,-502.12,0.00016428,3]
[367612748,1750873837299,-1200.0,0.00016434,2]
[367612749,1750873837307,-1200.0,0.00016435,2]
[367612750,1750873837316,-300.0,0.00016435,2]
[367612751,1750873837327,-300.0,0.00016435,2]
[367612752,1750873837338,-666.98641806,0.00016437,2]
[367612753,1750873837349,-500.0,0.00016437,2]
[367612754,1750873837360,-263.19053845,0.00016437,2]
[367612755,1750873837370,-500.0,0.00016437,2]
[367612756,1750873837379,-362.19665965,0.00016437,2]
[367612757,1750873837388,-362.82002461,0.00016437,2]
[367612776,1750873838210,-169.18655644,0.00016437,2]
[367612777,1750873838220,-500.0,0.00016437,2]
[367612778,1750873838229,-500.0,0.00016437,2]
[367612779,1750873838239,-500.0,0.00016437,2]
[367612780,1750873838248,-500.0,0.00016437,2]
[367612781,1750873838258,-500.0,0.00016437,2]
[367612782,1750873838267,-500.0,0.00016437,2]
[367612783,1750873838278,-500.0,0.00016437,2]
[367612784,1750873838288,-500.0,0.00016437,2]
[367612785,1750873838299,-211.62935071,0.00016437,2]
[367612786,1750873838309,-337.09424582,0.00016437,2]
[367612787,1750873838318,-500.0,0.00016437,2]
[367612788,1750873838337,-500.0,0.00016437,2]
[367612789,1750873838347,-500.0,0.00016437,2]
[367612790,1750873838357,-264.25866892,0.00016437,2]
[367612791,1750873838367,-411.07844502,0.00016437,2]
[367612792,1750873838376,-500.0,0.00016437,2]
[367612793,1750873838386,-500.0,0.00016437,2]
[367612794,1750873838395,-500.0,0.00016437,2]
[367612795,1750873838407,-500.0,0.00016437,2]
[367612796,1750873838417,-500.0,0.00016437,2]
[367612797,1750873838427,-500.0,0.00016437,2]
[367612798,1750873838437,-632.17551779,0.00016437,2]
[367612799,1750873838447,-500.0,0.00016437,2]
[367612800,1750873838456,-500.0,0.00016437,2]
[367612801,1750873838465,-460.0,0.00016438,2]
[367612802,1750873838475,-336.57959495,0.00016438,2]
[367612803,1750873838485,-460.0,0.00016438,2]
[367612804,1750873838496,-576.57480643,0.00016438,2]
[367612805,1750873838505,-460.0,0.00016438,2]
[367612806,1750873838515,-460.0,0.00016438,2]
[367612807,1750873838525,-461.3544805,0.00016438,2]
[367612808,1750873838536,-460.0,0.00016438,2]
[367612809,1750873838546,-460.0,0.00016438,2]
[367612810,1750873838556,-511.46,0.00016438,2]
[367612811,1750873838566,-231.44,0.00016438,2]
[367612812,1750873838576,-460.0,0.00016438,2]
[367612813,1750873838586,-500.0,0.00016438,2]
[367612814,1750873838597,-500.0,0.00016438,2]
[367612815,1750873838607,-500.0,0.00016438,2]
[367612816,1750873838618,-460.94235327,0.00016438,2]
[367612817,1750873838628,-395.45,0.00016438,2]
[367612818,1750873838639,-460.0,0.00016438,2]
[367612819,1750873838650,-460.0,0.00016438,2]
[367612820,1750873838660,-460.0,0.00016438,2]
[367612821,1750873838670,-460.0,0.00016438,2]
[367612822,1750873838680,-460.0,0.00016438,2]
[367612823,1750873838690,-460.0,0.00016438,2]
[367612824,1750873838699,-460.0,0.00016438,2]
[367612825,1750873838709,-460.0,0.00016438,2]
[367612826,1750873838719,-460.0,0.00016438,2]
[367612827,1750873838729,-460.0,0.00016438,2]
[367612828,1750873838739,-460.0,0.00016438,2]
[367612829,1750873838748,-460.0,0.00016438,2]
[367612830,1750873838757,-460.0,0.00016438,2]
[367612831,1750873838767,-460.0,0.00016438,2]
[367612832,1750873838778,-460.0,0.00016438,2]
[367612833,1750873838788,-460.0,0.00016438,2]
[367612834,1750873838798,-460.0,0.00016438,2]
[367612835,1750873838807,-460.0,0.00016438,2]
[367612836,1750873838816,-460.0,0.00016438,2]
[367612837,1750873838826,-440.462,0.00016438,2]
[367612838,1750873838836,-316.66507704,0.00016438,2]
[367612839,1750873838846,-460.0,0.00016438,2]
[367612840,1750873838856,-206.04835295,0.00016438,2]
[367612841,1750873838865,-460.0,0.00016438,2]
[367612842,1750873838875,-460.0,0.00016438,2]
[367612843,1750873838884,-460.0,0.00016438,2]
[367612844,1750873838894,-185.72015618,0.00016438,2]
[367612845,1750873838903,-460.0,0.00016438,2]
[367612846,1750873838914,-319.73989259,0.00016438,2]
[367612847,1750873838925,-461.75177177,0.00016438,2]
[367612848,1750873838935,-223.02887471,0.00016438,2]
[367612849,1750873838950,-236.97112529,0.00016438,2]
[367612850,1750873838961,-460.0,0.00016438,2]
[367612851,1750873838971,-460.0,0.00016438,2]
[367612852,1750873838981,-524.84325876,0.00016438,2]
[367612853,1750873838990,-460.0,0.00016438,2]
[367612854,1750873839000,-460.0,0.00016438,2]
[367612855,1750873839009,-430.0,0.00016438,2]
[367612856,1750873839019,-460.0,0.00016438,2]
[367612857,1750873839029,-460.0,0.00016438,2]
[367612858,1750873839039,-460.0,0.00016438,2]
[367612859,1750873839048,-460.0,0.00016438,2]
[367612860,1750873839058,-460.0,0.00016438,2]
[367612861,1750873839067,-460.0,0.00016438,2]
[367612862,1750873839077,-500.0,0.00016438,2]
[367612863,1750873839293,-687.14,0.00016438,2]
[367612864,1750873839304,-645.6,0.00016438,2]
[367612865,1750873839313,-460.0,0.00016438,2]
[367612866,1750873839326,-472.58,0.00016438,2]
[367612867,1750873839337,-460.0,0.00016438,2]
[367612868,1750873839346,-460.0,0.00016438,2]
[367612869,1750873839355,-460.0,0.00016438,2]
[367612870,1750873839365,-460.0,0.00016438,2]
[367612871,1750873839375,-998.66,0.00016438,2]
[367612872,1750873839384,-500.0,0.00016438,2]
[367612873,1750873839394,-500.0,0.00016438,2]
[367612874,1750873839406,-500.0,0.00016438,2]
[367612875,1750873839416,-460.0,0.00016438,2]
[367612876,1750873839426,-480.21,0.00016438,2]
[367612877,1750873839436,-460.0,0.00016438,2]
[367612878,1750873839446,-460.0,0.00016438,2]
[367612879,1750873839455,-271.96392025,0.00016438,2]
[367612880,1750873839465,-460.0,0.00016438,2]
[367612881,1750873839474,-447.02649285,0.00016438,2]
[367612882,1750873839484,-460.0,0.00016438,2]
[367612883,1750873839494,-460.0,0.00016438,2]
[367612884,1750873839504,-460.0,0.00016438,2]
[367612885,1750873839513,-478.31,0.00016438,2]
[367612886,1750873839524,-460.0,0.00016438,2]
[367612887,1750873839533,-265.25136343,0.00016438,2]
[367612888,1750873839543,-460.0,0.00016438,2]
[367612889,1750873839552,-213.45531832,0.00016438,2]
[367612890,1750873839575,-246.54468168,0.00016438,2]
[367612891,1750873839585,-171.45532042,0.00016438,2]
[367613210,1750873843477,-328.54467958,0.00016438,2]
[367613211,1750873843486,-500.0,0.00016438,2]
[367613212,1750873843496,-500.0,0.00016438,2]
[367613213,1750873843506,-460.0,0.00016438,2]
[367613214,1750873843515,-460.0,0.00016438,2]
[367613215,1750873843525,-460.0,0.00016438,2]
[367613216,1750873843535,-551.64,0.00016438,2]
[367613217,1750873843544,-460.0,0.00016438,2]
[367613218,1750873843554,-460.0,0.00016438,2]
[367613219,1750873843564,-460.0,0.00016438,2]
[367613220,1750873843574,-460.0,0.00016438,2]
[367613221,1750873843584,-575.73,0.00016438,2]
[367613222,1750873843593,-460.0,0.00016438,2]
[367613223,1750873843603,-460.0,0.00016438,2]
[367613224,1750873843613,-280.15739573,0.00016438,2]
[367613225,1750873843623,-460.0,0.00016438,2]
[367613226,1750873843633,-460.0,0.00016438,2]
[367613227,1750873843642,-500.15,0.00016438,2]
[367613228,1750873843652,-460.0,0.00016438,2]
[367613229,1750873843662,-460.0,0.00016438,2]
[367613230,1750873843672,-460.0,0.00016438,2]
[367613231,1750873843682,-302.48210599,0.00016438,2]
[367613232,1750873843691,-460.0,0.00016438,2]
[367613233,1750873843700,-460.0,0.00016438,2]
[367613234,1750873843710,-460.0,0.00016438,2]
[367613236,1750873843719,-460.0,0.00016438,2]
[367613238,1750873843728,-460.0,0.00016438,2]
[367613240,1750873843738,-460.0,0.00016438,2]
[367613242,1750873843747,-460.0,0.00016438,2]
[367613244,1750873843757,-460.0,0.00016438,2]
[367613246,1750873843766,-460.0,0.00016438,2]
[367613247,1750873843776,-460.0,0.00016438,2]
[367613248,1750873843786,-460.0,0.00016438,2]
[367613249,1750873843795,-460.0,0.00016438,2]
[367613250,1750873843805,-341.08,0.00016438,2]
[367613251,1750873843815,-460.0,0.00016438,2]
[367613252,1750873843824,-460.0,0.00016438,2]
[367613253,1750873843833,-460.0,0.00016438,2]
[367613254,1750873843843,-460.0,0.00016438,2]
[367613255,1750873843852,-460.0,0.00016438,2]
[367613256,1750873843861,-217.06,0.00016438,2]
[367613257,1750873843871,-460.0,0.00016438,2]
[367613258,1750873843881,-460.0,0.00016438,2]
[367613259,1750873843891,-460.0,0.00016438,2]
[367613260,1750873843900,-460.0,0.00016438,2]
[367613261,1750873843910,-460.0,0.00016438,2]
[367613262,1750873843920,-197.58,0.00016438,2]
[367613263,1750873843929,-460.0,0.00016438,2]
[367613264,1750873843939,-460.0,0.00016438,2]
[367613265,1750873843948,-460.0,0.00016438,2]
[367613266,1750873843958,-512.28834041,0.00016438,2]
[367613267,1750873843967,-460.0,0.00016438,2]
[367613268,1750873843977,-460.0,0.00016438,2]
[367613269,1750873843986,-460.0,0.00016438,2]
[367613270,1750873843996,-460.0,0.00016438,2]
[367613271,1750873844007,-460.0,0.00016438,2]
[367613272,1750873844017,-460.0,0.00016438,2]
[367613273,1750873844028,-460.0,0.00016438,2]
[367613274,1750873844038,-444.49377865,0.00016438,2]
[367613275,1750873844048,-460.0,0.00016438,2]
[367613276,1750873844058,-2072.56,0.00016438,2]
[367613277,1750873844067,-437.22660619,0.00016438,2]
[367613278,1750873844076,-460.0,0.00016438,2]
[367613279,1750873844086,-460.0,0.00016438,2]
[367613280,1750873844096,-1978.65,0.00016438,2]
[367613281,1750873844105,-460.0,0.00016438,2]
[367613282,1750873844114,-460.0,0.00016438,2]
[367613283,1750873844124,-614.81,0.00016438,2]
[367613284,1750873844134,-460.0,0.00016438,2]
[367613285,1750873844143,-3163.27,0.00016438,2]
[367613286,1750873844152,-460.0,0.00016438,2]
[367613287,1750873844161,-1645.78,0.00016438,2]
[367613288,1750873844171,-793.62,0.00016438,2]
[367613289,1750873844180,-460.0,0.00016438,2]
[367613290,1750873844190,-460.0,0.00016438,2]
[367613291,1750873844199,-534.37,0.00016438,2]
[367613292,1750873844208,-460.0,0.00016438,2]
[367613293,1750873844217,-1054.61,0.00016438,2]
[367613294,1750873844227,-460.0,0.00016438,2]
[367613296,1750873844236,-460.0,0.00016438,2]
[367613298,1750873844246,-460.0,0.00016438,2]
[367613300,1750873844256,-460.0,0.00016438,2]
[367613301,1750873844265,-460.0,0.00016438,2]
[367613302,1750873844277,-460.0,0.00016438,2]
[367613303,1750873844286,-460.0,0.00016438,2]
[367613304,1750873844296,-460.0,0.00016438,2]
[367613305,1750873844306,-460.0,0.00016438,2]
[367613306,1750873844315,-460.0,0.00016438,2]
[367613307,1750873844324,-460.0,0.00016438,2]
[367613308,1750873844334,-460.0,0.00016438,2]
[367613309,1750873844344,-528.85195199,0.00016438,2]